{"text_format":"1","workbook":"xlsx","n_sheets":1,"sheets":["Persona 1"],"not_rendered":{"charts":0,"images":5,"macros":1,"external_links":0,"defined_names":1,"comments":0,"pivot_tables":0},"unopened":[],"bounds":{"document_bytes":16777216,"sheet_cells":100000,"rows_first":2000,"rows_last":500,"rows_between":2000,"halvings":0,"cell_chars":16384,"cell_head_chars":4096},"cells_cut":0,"cells_raw":0,"read":"whole","date_system":"1900"}

{"sheet":"Persona 1","index":0,"n_rows":97,"n_cols":18,"rows_kept":97,"cut":false,"hidden":false,"merged":[[37,4,37,7],[35,0,35,7],[36,0,36,7],[32,0,32,7],[33,0,33,7],[34,0,34,7],[62,0,62,7],[63,0,63,7],[64,0,64,7],[65,0,65,7],[66,0,66,7],[28,4,28,7],[26,0,26,7],[27,0,27,7],[24,0,24,7],[25,0,25,7],[40,0,40,5],[18,2,18,4],[12,5,12,6],[14,5,14,6],[16,5,16,6],[18,5,18,6],[13,2,13,4],[13,5,13,6],[13,0,13,1],[17,5,17,6],[22,0,22,7],[21,0,21,7],[23,0,23,7],[40,6,40,7],[12,2,12,4],[14,2,14,4],[48,4,48,7],[91,0,91,8],[79,0,79,2],[87,0,87,2],[90,0,90,2],[72,0,72,1],[51,6,51,7],[55,0,55,1],[55,2,55,3],[56,0,56,1],[56,2,56,3],[57,0,57,1],[57,2,57,3],[58,0,58,1],[54,0,54,1],[54,2,54,3],[0,0,2,8],[18,0,18,1],[14,0,14,1],[15,0,15,4],[17,0,17,1],[17,2,17,4],[6,2,6,4],[7,2,7,4],[8,2,8,4],[16,2,16,4],[41,2,41,3],[42,2,42,3],[43,2,43,3],[44,2,44,3],[45,2,45,3],[41,0,41,1],[42,0,42,1],[43,0,43,1],[44,0,44,1],[45,0,45,1],[58,2,58,3],[59,4,59,7],[100,0,100,2],[46,2,46,3],[47,2,47,3],[71,2,71,3],[72,2,72,3],[96,0,96,1],[71,0,71,1],[46,0,46,1],[47,0,47,1],[51,0,51,5],[52,0,52,1],[52,2,52,3],[53,0,53,1],[53,2,53,3]]}
["Modulo di conteggio per misure di protezione dei minori stazionarie"]
[]
[]
[]
["Presenti contemporaneamente misure di protezione dei minori ambulatoriali e stazionarie:"]
[]
["Comune di"]
["Anno"]
["Periodo"]
[]
[]
["Minore"]
["Cognome",null,"Nome",null,null,"Data di nascita (gg/mm/aaaa)"]
[]
[]
["Genitori (detentore/i dell'autorità parentale)"]
["Cognome",null,"Nome",null,null,"Via / n.",null,"NPA","Luogo"]
[]
[]
[]
["Prestazioni di terzi"]
["Reddito mensile del minore",null,null,null,null,null,null,null,"Importo"]
["Descrizione",null,null,null,null,null,null,null,"(fr.)"]
["Entrate da rendite/indennità giornaliere/assicurazioni/aiuti"]
["Assegni per i figli/di formazione"]
["Contributi di mantenimento e alimenti"]
["Borse di studio"]
["Altre entrate periodiche del minore (inserire se del caso)"]
[null,null,null,null,"Totale delle prestazioni di terzi (da aggiungere alle spese per le misure)",null,null,null,{"$f":"SUM(I24:I28)","v":0}]
[]
["Nel trimestre in questione sono state pagate retroattivamente prestazioni di terzi (ad es. AI, PC, ecc.)?"]
[]
["Prestazioni di terzi pagate retroattivamente (per l'intera durata delle misure di protezione dei minori stazionarie)",null,null,null,null,null,null,null,"Importo"]
["Descrizione",null,null,null,null,null,null,null,"(fr.)"]
[]
[]
[]
[null,null,null,null,"Totale delle prestazioni di terzi pagate retroattivamente                             (da aggiungere alle spese per le misure)",null,null,null,{"$f":"SUM(I35:I37)","v":0}]
[]
["Spese per misure di protezione dei minori stazionarie"]
["Struttura",null,null,null,null,null,"Durata del soggiorno (nel trimestre)",null,"Importo"]
["Cognome",null,"Via",null,"NPA","Luogo","dal (gg/mm/aaaa)","al (gg/mm/aaaa)","(fr.)",null,null,"Eff. Tage","Diff. Anfangsmonat","Tage Anfangsmonat","Diff. Endmonat","Tage Endmonat","Max. Tage","Betrag"]
[null,null,null,null,null,null,null,null,null,null,null,{"$f":"IF(OR(ISBLANK(G43),ISBLANK(H43)),\"\",_xlfn.DAYS(H43,G43)+1)","v":""},{"$f":"IF(OR(ISBLANK(G43),ISBLANK(H43)),\"\",IF(DAY(G43)<>1,DAY(G43),1))","v":""},{"$f":"IF(OR(ISBLANK(G43),ISBLANK(H43)),\"\",DAY(DATE(YEAR(G43),MONTH(G43)+1,0)))","v":""},{"$f":"IF(OR(ISBLANK(G43),ISBLANK(H43)),\"\",IF(DAY(H43)<>DAY(DATE(YEAR(H43),MONTH(H43)+1,0)),DAY(DATE(YEAR(H43),MONTH(H43)+1,0))-DAY(H43),0))","v":""},{"$f":"IF(OR(ISBLANK(G43),ISBLANK(H43)),\"\",DAY(DATE(YEAR(H43),MONTH(H43)+1,0)))","v":""},{"$f":"IF(OR(ISBLANK(G43),ISBLANK(H43)),\"\",SUM(_xlfn.DAYS(H43,G43),M43,O43))","v":""},{"$f":"IFERROR(IF(AND($I$29<>0,I43<>\"\",ISERROR(IF(MONTH(H43)-MONTH(G43)=0,$I$29/Q43*L43,IF(MONTH(H43)-MONTH(G43)=1,($I$29/N43*(N43-M43+1))+($I$29/P43*(P43-O43)),($I$29*(MONTH(H43)-MONTH(G43)-1))+($I$29/N43*(N43-M43+1))+($I$29/P43*(P43-O43)))))),\"Verificare!\",IF(MONTH(H43)-MONTH(G43)=0,$I$29/Q43*L43,IF(MONTH(H43)-MONTH(G43)=1,($I$29/N43*(N43-M43+1))+($I$29/P43*(P43-O43)),($I$29*(MONTH(H43)-MONTH(G43)-1))+($I$29/N43*(N43-M43+1))+($I$29/P43*(P43-O43))))),\"\")","v":""}]
[null,null,null,null,null,null,null,null,null,null,null,{"$f":"IF(OR(ISBLANK(G44),ISBLANK(H44)),\"\",_xlfn.DAYS(H44,G44)+1)","v":""},{"$f":"IF(OR(ISBLANK(G44),ISBLANK(H44)),\"\",IF(DAY(G44)<>1,DAY(G44),1))","v":""},{"$f":"IF(OR(ISBLANK(G44),ISBLANK(H44)),\"\",DAY(DATE(YEAR(G44),MONTH(G44)+1,0)))","v":""},{"$f":"IF(OR(ISBLANK(G44),ISBLANK(H44)),\"\",IF(DAY(H44)<>DAY(DATE(YEAR(H44),MONTH(H44)+1,0)),DAY(DATE(YEAR(H44),MONTH(H44)+1,0))-DAY(H44),0))","v":""},{"$f":"IF(OR(ISBLANK(G44),ISBLANK(H44)),\"\",DAY(DATE(YEAR(H44),MONTH(H44)+1,0)))","v":""},{"$f":"IF(OR(ISBLANK(G44),ISBLANK(H44)),\"\",SUM(_xlfn.DAYS(H44,G44),M44,O44))","v":""},""]
[null,null,null,null,null,null,null,null,null,null,null,"","","","","","",""]
[null,null,null,null,null,null,null,null,null,null,null,"","","","","","",""]
[null,null,null,null,null,null,null,null,null,null,null,"","","","","","",""]
[null,null,null,null,null,null,null,null,null,null,null,"","","","","","",""]
[null,null,null,null,"Spese complessive per misure di protezione dei minori stazionarie",null,null,null,{"$f":"SUM(I43:I48)","v":0}]
[]
["Spese per misure di protezione dei minori ambulatoriali"]
["Struttura",null,null,null,null,null,"Durata del soggiorno (nel trimestre)",null,"Importo"]
["Cognome",null,"Via",null,"NPA","Luogo","dal (gg/mm/aaaa)","al (gg/mm/aaaa)","(fr.)"]
[]
[]
[]
[]
[]
[]
[null,null,null,null,"Spese complessive per misure di protezione dei minori ambulatoriali",null,null,null,{"$f":"SUM(I54:I59)","v":0}]
[]
["Conteggio delle spese nette"]
["Spese complessive per misure di protezione dei minori stazionarie",null,null,null,null,null,null,null,{"$f":"I49","v":0}]
["Spese complessive per misure di protezione dei minori ambulatoriali",null,null,null,null,null,null,null,{"$f":"I60","v":0}]
["Totale delle prestazioni di terzi",null,null,null,null,null,null,null,{"$f":"IF(OR(R43=\"Verificare!\",R44=\"Verificare!\",R45=\"Verificare!\",R46=\"Verificare!\",R47=\"Verificare!\",R48=\"Verificare!\"),\"Verificare!\",SUM(R43:R48,I38))","v":0},"Prego registrare correttamente la durata del soggiorno sotto \"Spese complessive per misure di protezione dei minori stazionarie\""]
["Quota da fatturare al fondo intercomunale (95% del totale delle spese per misure di protezione dei minori)",null,null,null,null,null,null,null,{"$f":"IF(I65=\"Verificare!\",\"Verificare!\",0.95*(I63+I64-I65))","v":0}]
["Quota rimanente ai comuni (5% delle spese complessive per misure di protezione dei minori)",null,null,null,null,null,null,null,{"$f":"IF(I66=\"Verificare!\",\"Verificare!\",0.05*(I63+I64-I65))","v":0}]
[]
["Contributo dei genitori (versato effettivamente nel trimestre in questione)"]
[]
[]
["Pagato dai genitori ",null,"Anticipato dal comune",null,"Aliquota giornaliera* (fr.)","Numero di giorni","Contributo dei genitori (fr.)","Quota a favore del comune (20%) (fr.)","Quota a favore del fondo intercomunale\n(80%) (fr.) "]
[null,null,null,null,null,null,{"$f":"E73*F73","v":0},{"$f":"0.2*G73","v":0},{"$f":"0.8*G73","v":0}]
[null,null,null,null,"totale",{"$f":"SUM(F73:F73)","v":0},{"$f":"SUM(G73:G73)","v":0},{"$f":"SUM(H73:H73)","v":0},{"$f":"SUM(I73:I73)","v":0}]
[]
["*In conformità all'art. 63a cpv. 4 LICC, l'aliquota giornaliera deve essere di almeno CHF 10.00. "]
[]
["Importo totale a favore del comune",null,null,null,null,null,null,null,{"$f":"I66-I74","v":0}]
[]
["Allegati"]
["- decisione relativa a misure di protezione dei minori"]
["- conteggi delle strutture fornitrici di prestazioni"]
["- calcolo del contributo dei genitori"]
["- prova dei contributi dei genitori versati (estratto conto)"]
["- decisione relativa alle prestazioni e/o all'aiuto sociale"]
["- prova relativa agli alimenti"]
[]
["Termine di inoltro"]
["30 aprile, 31 luglio, 31 ottobre e 31 gennaio"]
[]
["Forma di inoltro"]
["Il conteggio e i relativi documenti devono essere inoltrati in forma elettronica tramite pCloud (accesso sicuro). La preghiamo di contattarci in modo da poterle creare l'account. "]
[]
[]
[]
[]
["Luogo / data",null,null,null,null,"Firma Comune"]